bitfinex/quotes_BTCUSD_20251215
["timestamp","ask_amount","ask_price","bid_price","bid_amount"]
[1765826780258,0.00011387,86336.0,86335.0,0.39752934]
[1765826781189,0.00011387,86336.0,86335.0,0.23165575]
[1765826781392,0.00011387,86336.0,86335.0,0.23265575]
[1765826781806,0.00011387,86336.0,86335.0,0.23365575]
[1765826782039,0.00011387,86336.0,86335.0,0.35109575]
[1765826782544,0.00011387,86336.0,86335.0,0.46754934]
[1765826783578,0.00011387,86336.0,86335.0,0.51756773]
[1765826783782,0.00011387,86336.0,86335.0,0.46754934]
[1765826783983,0.00011387,86336.0,86335.0,0.37952974]
[1765826784747,0.00011387,86336.0,86335.0,0.42854813]
[1765826784921,0.00011387,86336.0,86335.0,0.42954813]
[1765826785184,0.04201272,86366.0,86364.0,0.23157797]
[1765826785387,0.00011414,86366.0,86363.0,0.24315875]
[1765826785674,0.00011414,86366.0,86364.0,0.23157633]
[1765826785675,0.03117296,86365.0,86364.0,0.23157633]
[1765826785899,0.00011414,86366.0,86364.0,0.23157633]
[1765826786104,0.00011414,86366.0,86364.0,0.23157748]
[1765826786958,0.00011414,86366.0,86365.0,0.04942]
[1765826787151,0.00311414,86366.0,86364.0,0.23157748]
[1765826787309,0.01469277,86366.0,86362.0,0.24315674]
[1765826787511,0.00011414,86366.0,86364.0,0.23157655]
[1765826787709,0.00311414,86366.0,86363.0,0.23158026]
[1765826787912,0.00011414,86366.0,86364.0,0.2315775]
[1765826788118,0.23157797,86364.0,86362.0,0.01844]
[1765826788320,0.24315656,86365.0,86362.0,0.03001916]
[1765826788521,0.24315432,86365.0,86362.0,0.03001916]
[1765826788688,0.01157983,86357.0,86354.0,0.01158023]
[1765826788903,0.24316733,86361.0,86356.0,0.01157997]
[1765826789127,0.23159204,86359.0,86357.0,0.01157983]
[1765826789329,0.00011414,86366.0,86363.0,0.24315782]
[1765826789485,0.00011414,86366.0,86365.0,0.39744888]
[1765826789907,0.00111414,86366.0,86365.0,0.46546888]
[1765826790781,0.00011414,86366.0,86365.0,0.46546888]
[1765826791023,0.00211414,86366.0,86365.0,0.46546888]
[1765826791623,0.00211414,86366.0,86365.0,0.51548727]
[1765826792847,0.00011414,86366.0,86365.0,0.51748727]
[1765826793066,0.00011414,86366.0,86365.0,0.51848727]
[1765826794092,0.00011414,86366.0,86365.0,0.53692727]
[1765826798423,0.00011414,86366.0,86365.0,0.24456928]
[1765826798771,0.28041961,86366.0,86365.0,0.003]
[1765826798941,0.04884701,86366.0,86365.0,0.003]
[1765826799304,0.42028133,86366.0,86365.0,0.003]
[1765826799905,0.33559961,86366.0,86365.0,0.002]
[1765826800934,0.33759961,86366.0,86365.0,0.002]
[1765826801114,0.24316026,86363.0,86360.0,0.01157943]
[1765826801298,0.24315977,86363.0,86360.0,0.23158608]
[1765826801531,0.23158366,86362.0,86359.0,0.01157956]
[1765826801731,0.23158935,86360.0,86357.0,0.01157983]
[1765826801955,0.0115801,86355.0,86352.0,0.0115805]
[1765826802171,0.23159898,86357.0,86352.0,0.0115805]
[1765826802172,0.2431802,86356.0,86352.0,0.0115805]
[1765826802371,0.2431802,86356.0,86351.0,0.01158064]
[1765826802372,0.23160527,86354.0,86351.0,0.24319263]
[1765826802572,0.23160527,86354.0,86350.0,0.01158077]
[1765826802797,0.01157997,86356.0,86353.0,0.00161287]
[1765826803147,0.01257943,86360.0,86348.0,0.03716]
[1765826803349,0.01157983,86357.0,86351.0,0.01158064]
[1765826803548,0.001,86354.0,86351.0,0.01158064]
[1765826803749,0.01157997,86356.0,86351.0,0.01158064]
[1765826803957,0.001,86360.0,86350.0,0.01158077]
[1765826804161,0.01157956,86359.0,86354.0,0.01158023]
[1765826804518,0.0115797,86358.0,86354.0,0.01158023]
[1765826804716,0.01157863,86366.0,86356.0,0.01157997]
[1765826804860,0.01157863,86366.0,86357.0,0.01157983]
[1765826804861,0.24316322,86362.0,86357.0,0.01157983]
[1765826805065,0.2907,86365.0,86360.0,0.01157943]
[1765826805249,0.2907,86365.0,86350.0,0.11645359]
[1765826805250,0.24313157,86373.0,86353.0,0.00161287]
[1765826805452,0.01157809,86370.0,86363.0,0.01157903]
[1765826805869,0.002,86366.0,86364.0,0.23157797]
[1765826806076,0.002,86366.0,86365.0,0.24315395]
[1765826806272,0.002,86366.0,86365.0,0.01157876]
[1765826806811,0.002,86366.0,86365.0,0.24315405]
[1765826807426,0.002,86366.0,86365.0,0.24476692]
[1765826807605,0.002,86366.0,86365.0,0.00161287]
[1765826807842,0.01157836,86368.0,86355.0,0.0115801]
[1765826807843,0.24316613,86361.0,86356.0,0.01157997]
[1765826808044,0.2431569,86364.0,86359.0,0.01157956]
[1765826808244,0.01157943,86360.0,86353.0,0.00011414]
[1765826808462,0.24317939,86356.0,86353.0,0.00011414]
[1765826808642,0.01157916,86362.0,86354.0,0.01158023]
[1765826808822,0.0115797,86358.0,86354.0,0.01158023]
[1765826809037,0.24316866,86360.0,86355.0,0.0115801]
[1765826809221,0.01157956,86359.0,86354.0,0.24318433]
[1765826809428,0.01257997,86356.0,86353.0,0.00011414]
[1765826809741,0.2431791,86357.0,86353.0,0.00011414]
[1765826809945,0.0115797,86358.0,86353.0,0.24330137]
[1765826810125,0.01157997,86356.0,86353.0,0.00011414]
[1765826810330,0.01157983,86357.0,86353.0,0.00011414]
[1765826810506,0.23160478,86354.0,86353.0,0.00011414]
[1765826810713,0.01157997,86356.0,86353.0,0.00011414]
[1765826811343,0.23160214,86355.0,86353.0,0.00011414]
[1765826811568,0.01157983,86357.0,86353.0,0.00011414]
[1765826811784,0.0115797,86358.0,86353.0,0.01169451]
[1765826811785,0.003,86356.0,86353.0,0.01169451]
[1765826812623,0.001,86355.0,86353.0,0.01169451]
[1765826812845,0.001,86355.0,86353.0,0.24330146]
[1765826813043,0.001,86355.0,86353.0,0.01169451]
[1765826813238,0.003,86356.0,86353.0,0.24330162]
[1765826813478,0.004,86356.0,86353.0,0.24330162]
[1765826813637,0.01557997,86356.0,86353.0,0.00011414]
[1765826814207,0.11583005,86354.0,86353.0,0.00011414]
[1765826814410,0.23160478,86354.0,86353.0,0.00011414]
[1765826815024,0.24325146,86331.0,86326.0,0.01158399]
[1765826815223,0.23167427,86329.0,86326.0,0.00011387]
[1765826815624,0.01158319,86332.0,86326.0,0.23179109]
[1765826815875,0.01158305,86333.0,86326.0,0.01169786]
[1765826816075,0.01158292,86334.0,86329.0,0.231671]
[1765826816283,0.01158292,86334.0,86327.0,0.01158386]
[1765826816284,0.01158305,86333.0,86328.0,0.01158372]
[1765826816489,0.24324757,86332.0,86328.0,0.01158372]
[1765826816665,0.01158359,86329.0,86326.0,0.00011387]
[1765826816909,0.23167722,86327.0,86326.0,0.00011387]
[1765826818177,0.23267722,86327.0,86326.0,0.00011387]
[1765826820631,0.34850727,86327.0,86326.0,0.00011387]
[1765826820850,0.001,86327.0,86326.0,0.00011387]
[1765826821279,0.23267722,86327.0,86326.0,0.00011387]
[1765826821706,0.05983763,86327.0,86326.0,0.00011387]
[1765826822142,0.06983159,86327.0,86326.0,0.00011387]
[1765826822582,0.06983159,86327.0,86320.0,2.0]
[1765826822583,0.52239333,86321.0,86320.0,1.68667]
[1765826822800,1.55082729,86321.0,86320.0,1.06001]
[1765826823477,0.53238729,86321.0,86320.0,1.06001]
[1765826823693,0.54083333,86321.0,86320.0,1.06001]
[1765826824294,0.65666338,86321.0,86320.0,1.06001]
[1765826824500,0.66166338,86321.0,86320.0,1.06001]
[1765826825280,0.66566338,86321.0,86320.0,1.06001]
[1765826825687,1.78199453,86321.0,86320.0,1.0195754]
[1765826825859,1.78199453,86321.0,86278.0,0.06991]
[1765826825860,0.01158936,86286.0,86281.0,0.23179981]
[1765826826228,0.23179228,86285.0,86283.0,0.00077959]
[1765826826434,0.24335281,86295.0,86285.0,0.24337641]
[1765826826667,0.23177964,86289.0,86285.0,0.01158949]
[1765826826841,0.11583005,86291.0,86288.0,0.24337072]
[1765826827053,0.11583005,86291.0,86287.0,0.01158923]
[1765826827245,0.11583005,86291.0,86288.0,0.01158909]
[1765826827448,0.11583005,86291.0,86288.0,0.24337038]
[1765826827650,0.01158829,86294.0,86290.0,0.01158882]
[1765826827791,0.01158829,86294.0,86288.0,0.01158909]
[1765826827792,0.01158855,86292.0,86288.0,0.24337049]
[1765826828001,0.01158855,86292.0,86289.0,0.24336709]
[1765826828409,0.01158788,86297.0,86294.0,0.01158829]
[1765826828659,0.03002627,86309.0,86305.0,0.01158681]
[1765826828809,0.2907,86319.0,86305.0,0.01158681]
[1765826828810,0.01158493,86319.0,86314.0,0.0115856]
[1765826829017,0.0115852,86317.0,86314.0,0.00161287]
[1765826829259,0.23170743,86316.0,86314.0,0.00161287]
[1765826829459,0.24328996,86317.0,86314.0,0.00161287]
[1765826829637,0.23170728,86316.0,86314.0,0.00161287]
[1765826829839,0.01158493,86319.0,86316.0,0.01158533]
[1765826830122,0.46324707,86348.0,86320.0,0.0115848]
[1765826830123,0.01158359,86329.0,86320.0,0.0115848]
[1765826830444,0.29081404,86329.0,86326.0,0.24326337]
[1765826830846,0.29081404,86329.0,86327.0,0.23167713]
[1765826831471,0.00411404,86329.0,86328.0,0.23167454]
[1765826831695,0.00911404,86329.0,86328.0,0.23328741]
[1765826831892,0.00011404,86329.0,86328.0,0.23328741]
[1765826832323,0.00911404,86329.0,86328.0,0.23328741]
[1765826833096,0.00911404,86329.0,86328.0,0.27928741]
[1765826833368,0.00911404,86329.0,86328.0,0.34919741]
[1765826833482,0.00511404,86329.0,86328.0,0.34919741]
[1765826833893,0.00011404,86329.0,86328.0,0.34919741]
[1765826834099,0.00011404,86329.0,86328.0,0.465651]
[1765826834300,0.00011404,86329.0,86328.0,0.02005287]
[1765826834508,0.00011404,86329.0,86328.0,0.00161287]
[1765826835334,0.00011404,86329.0,86328.0,0.11752287]
[1765826835544,0.00111404,86329.0,86328.0,0.54784391]
[1765826835750,0.00111404,86329.0,86328.0,0.52467646]
[1765826836989,0.00111404,86329.0,86328.0,0.57469485]
[1765826837208,0.00011404,86329.0,86328.0,0.57469485]
[1765826837777,0.00011404,86329.0,86328.0,0.57569485]
[1765826837997,0.00011404,86329.0,86328.0,0.52567646]
[1765826838164,0.00011404,86329.0,86328.0,0.54411646]
[1765826838373,0.00011404,86329.0,86328.0,0.54511646]
[1765826838578,0.00011404,86329.0,86328.0,0.59513485]
[1765826838945,0.00011404,86329.0,86328.0,0.54511646]
[1765826839150,0.00011404,86329.0,86328.0,0.42866287]
[1765826839569,0.00011404,86329.0,86328.0,0.35875287]
[1765826839765,0.00011404,86329.0,86328.0,0.42866287]
[1765826840148,0.00011404,86329.0,86328.0,0.42766287]
[1765826840358,0.00011404,86329.0,86328.0,0.42666287]
[1765826840558,0.00011404,86329.0,86328.0,0.40922287]
[1765826840759,0.00011404,86329.0,86328.0,0.42866287]
[1765826841378,0.00011404,86329.0,86328.0,0.00361287]
[1765826842087,0.00011404,86329.0,86328.0,0.00261287]
[1765826842724,0.00011404,86329.0,86328.0,0.001]
[1765826842725,1.300808,86329.0,86328.0,0.001]
[1765826842923,0.01158614,86310.0,86304.0,0.01158694]
[1765826843154,0.04749964,86310.0,86307.0,0.01158654]
[1765826843268,0.01158641,86308.0,86305.0,0.01158681]
[1765826843472,0.23173837,86305.0,86302.0,0.01158721]
[1765826843712,0.23173942,86304.0,86302.0,0.01158721]
[1765826843926,0.01158681,86305.0,86300.0,0.24333479]
[1765826844127,0.23174035,86304.0,86301.0,0.23174637]
[1765826844358,0.24332541,86305.0,86302.0,0.23174422]
[1765826844891,0.001,86304.0,86302.0,0.23174422]
[1765826845354,0.001,86304.0,86302.0,0.23174238]
[1765826845597,0.23273944,86304.0,86301.0,0.2433343]
[1765826845776,0.001,86304.0,86301.0,0.2433343]
[1765826845976,0.24332318,86305.0,86301.0,0.2433343]
[1765826846208,0.01158641,86308.0,86302.0,0.01158721]
[1765826846440,0.23273649,86305.0,86303.0,0.01158708]
[1765826846680,0.01158681,86305.0,86302.0,0.24333047]
[1765826846903,0.23174175,86303.0,86300.0,0.2317497]
[1765826847136,0.24432477,86305.0,86300.0,0.2317497]
[1765826847137,0.001,86305.0,86303.0,0.23174165]
[1765826847283,0.01158681,86305.0,86301.0,0.01158735]
[1765826847477,0.002,86308.0,86306.0,0.23173359]
[1765826847684,0.24331412,86309.0,86306.0,0.23173359]
[1765826848124,7.924e-05,86309.0,86306.0,0.01158667]
[1765826848326,7.924e-05,86309.0,86308.0,0.23172822]
[1765826848529,7.924e-05,86309.0,86308.0,0.27934109]
[1765826848784,7.924e-05,86309.0,86304.0,0.01158694]
[1765826848785,1.00007924,86309.0,86288.0,0.03481451]
[1765826848940,0.01158775,86298.0,86289.0,0.01320183]
[1765826849178,0.01158855,86292.0,86289.0,0.00161287]
[1765826849380,0.01158815,86295.0,86291.0,0.01158869]
[1765826849547,0.23176803,86294.0,86289.0,0.24498029]
[1765826849750,0.01158855,86292.0,86289.0,0.00161287]
[1765826849949,0.24336156,86292.0,86289.0,0.00161287]
[1765826850160,0.11583005,86296.0,86293.0,0.01158842]
[1765826850335,0.11583005,86296.0,86289.0,0.01320183]
[1765826850336,0.01158802,86296.0,86292.0,0.23176546]
[1765826850565,0.11583005,86299.0,86292.0,0.01158855]
[1765826850726,0.01158681,86305.0,86302.0,0.01158721]
[1765826850927,0.01158654,86307.0,86302.0,0.01158721]
[1765826851238,7.924e-05,86309.0,86307.0,0.23172996]
[1765826851461,7.924e-05,86309.0,86308.0,0.04958]
[1765826851629,7.924e-05,86309.0,86308.0,0.00161287]
[1765826852106,7.924e-05,86309.0,86308.0,0.12161287]
[1765826852306,7.924e-05,86309.0,86308.0,0.14478569]
[1765826852506,7.924e-05,86309.0,86308.0,0.23806646]
[1765826852909,0.00207924,86309.0,86308.0,0.23806646]
[1765826853322,0.00107924,86309.0,86308.0,0.23806646]
[1765826853527,0.00107924,86309.0,86308.0,0.28808485]
[1765826853682,7.924e-05,86309.0,86308.0,0.28808485]
[1765826854066,7.924e-05,86309.0,86308.0,0.29208485]
[1765826855159,7.924e-05,86309.0,86308.0,0.24206646]
[1765826855317,7.924e-05,86309.0,86308.0,0.00561287]
[1765826855912,7.924e-05,86309.0,86308.0,0.00161287]
[1765826856115,7.924e-05,86309.0,86308.0,0.00261287]
[1765826856315,7.924e-05,86309.0,86308.0,0.00361287]
[1765826856511,7.924e-05,86309.0,86308.0,0.00261287]
[1765826856987,7.924e-05,86309.0,86308.0,0.00161287]
[1765826857200,7.924e-05,86309.0,86308.0,0.23434109]
[1765826857425,7.924e-05,86309.0,86308.0,0.35434109]
[1765826857636,7.924e-05,86309.0,86308.0,0.00261287]
[1765826857842,0.23180478,86309.0,86308.0,0.00261287]
[1765826859071,0.31870447,86309.0,86308.0,0.001]
[1765826859473,0.23180478,86309.0,86308.0,0.001]
[1765826859681,0.34763483,86309.0,86308.0,0.001]
[1765826859881,0.63833483,86309.0,86308.0,0.001]
[1765826860281,0.23176325,86295.0,86293.0,0.01158842]
[1765826860708,0.23176325,86295.0,86291.0,0.24336248]
[1765826860709,0.23176584,86294.0,86291.0,0.24336248]
[1765826860842,0.01158815,86295.0,86288.0,0.03002909]
[1765826861047,0.01158815,86295.0,86289.0,0.23177835]
[1765826861267,0.01158815,86295.0,86289.0,0.01158896]
[1765826861672,0.23176641,86294.0,86290.0,0.23177633]
[1765826861875,0.01158896,86289.0,86284.0,0.24338102]
[1765826862083,0.23179268,86284.0,86283.0,0.0004]
[1765826862302,0.01158936,86286.0,86283.0,0.0004]
[1765826862495,0.2317203,86311.0,86307.0,0.23172958]
[1765826862696,0.24339106,86309.0,86305.0,0.01158681]
[1765826862896,0.23173097,86307.0,86305.0,0.01158681]
[1765826863071,0.24331751,86307.0,86304.0,0.24332435]
[1765826863473,7.924e-05,86309.0,86306.0,0.01158667]
[1765826863689,0.00307924,86309.0,86308.0,0.23172822]
[1765826863894,0.00407924,86309.0,86308.0,0.23172822]
[1765826864235,0.00407924,86309.0,86308.0,0.35334109]
[1765826864847,0.00107924,86309.0,86308.0,0.46979468]
[1765826864991,7.924e-05,86309.0,86308.0,0.46979468]
[1765826865402,0.00107924,86309.0,86308.0,0.81051307]
[1765826865814,7.924e-05,86309.0,86308.0,0.81051307]
[1765826866014,7.924e-05,86309.0,86308.0,0.81151307]
[1765826866214,0.00107924,86309.0,86308.0,0.81151307]
[1765826866414,7.924e-05,86309.0,86308.0,0.81151307]
[1765826866824,7.924e-05,86309.0,86308.0,0.81251307]
[1765826867915,0.01158372,86328.0,86319.0,0.01158493]
[1765826868028,7.934e-05,86328.0,86327.0,0.01158386]
[1765826868483,7.934e-05,86328.0,86326.0,0.24326386]
[1765826868484,0.23175406,86328.0,86326.0,0.01158399]
[1765826868814,0.24333778,86328.0,86325.0,0.24326662]
[1765826868962,0.00207934,86328.0,86326.0,0.23167977]
[1765826869163,0.00207934,86328.0,86327.0,0.23167722]
[1765826869441,0.00407934,86328.0,86327.0,0.23167722]
[1765826869622,0.01166306,86328.0,86324.0,0.01158426]
[1765826869846,0.35909239,86327.0,86323.0,0.24326984]
[1765826870078,0.01158426,86324.0,86319.0,0.00161287]
[1765826870284,0.24329367,86316.0,86313.0,0.23171455]
[1765826870491,0.2432911,86317.0,86314.0,0.0115856]
[1765826870671,0.12741417,86325.0,86321.0,0.01158466]
[1765826870912,0.12741417,86325.0,86315.0,0.01158547]
[1765826870913,0.01158506,86318.0,86315.0,0.01158547]
[1765826871126,0.0115848,86320.0,86315.0,0.01158547]
[1765826871339,0.23169662,86320.0,86317.0,0.24328791]
[1765826871546,0.24327819,86321.0,86318.0,0.24328556]
[1765826871751,0.24327816,86321.0,86318.0,0.24328556]
[1765826872168,0.23169885,86319.0,86316.0,0.24329146]
[1765826872374,0.24328233,86320.0,86316.0,0.24329146]
[1765826872582,0.001,86320.0,86318.0,0.2317012]
[1765826872798,0.01158399,86326.0,86323.0,0.23168796]
[1765826873003,0.12741417,86325.0,86322.0,0.01158453]
[1765826873212,0.23168932,86323.0,86321.0,0.01158466]
[1765826873425,0.12741417,86325.0,86321.0,0.01158466]
[1765826873426,0.11590939,86328.0,86325.0,0.01158412]
[1765826873605,0.11590939,86328.0,86327.0,0.23167722]
[1765826874192,0.11590939,86328.0,86326.0,0.23167913]
[1765826874369,0.11590939,86328.0,86325.0,0.01158412]
[1765826874370,7.934e-05,86328.0,86325.0,0.01158412]
[1765826874577,7.934e-05,86328.0,86325.0,0.24326647]
[1765826874891,7.934e-05,86328.0,86327.0,0.23167722]
[1765826875145,0.00207934,86328.0,86327.0,0.23167722]
[1765826875421,0.00407934,86328.0,86327.0,0.23167722]
[1765826875761,7.934e-05,86328.0,86327.0,0.23167722]
[1765826875965,0.2432637,86327.0,86324.0,0.23168489]
[1765826876167,0.01158386,86327.0,86325.0,0.23168235]
[1765826876525,0.24326167,86327.0,86324.0,0.24326915]
[1765826876702,0.24533888,86328.0,86325.0,0.2432643]
[1765826876919,0.01366306,86328.0,86326.0,0.2316791]
[1765826877168,0.01366306,86328.0,86327.0,0.27798722]
[1765826877169,0.00207934,86328.0,86327.0,0.27798722]
[1765826877386,0.00207934,86328.0,86327.0,0.27960009]
[1765826877573,7.934e-05,86328.0,86327.0,0.23329009]
[1765826878439,0.00207934,86328.0,86327.0,0.23329009]
[1765826878843,0.05293656,86328.0,86317.0,0.0115852]
[1765826879068,0.01158466,86321.0,86316.0,0.01158533]
[1765826879269,0.24328037,86321.0,86317.0,0.24328673]
[1765826879946,0.11583005,86323.0,86320.0,0.0115848]
[1765826880164,0.2316986,86320.0,86316.0,0.23170421]
[1765826880342,0.11583005,86323.0,86316.0,0.01158533]
[1765826880540,0.2432775,86322.0,86319.0,0.24328144]
[1765826880690,0.23169776,86320.0,86317.0,0.23170161]
[1765826880891,0.01158453,86322.0,86317.0,0.23170161]
[1765826880892,0.01158466,86321.0,86318.0,0.01158506]
[1765826881098,0.24328031,86321.0,86318.0,0.2432863]
[1765826881505,0.24328031,86321.0,86311.0,0.0341]
[1765826881506,0.0115852,86317.0,86311.0,0.0341]
[1765826881713,0.05373879,86320.0,86288.0,0.49837659]
[1765826881714,0.85855157,86312.0,86300.0,0.00161287]
[1765826881927,0.23174702,86301.0,86300.0,0.00161287]
[1765826882150,0.01158708,86303.0,86300.0,0.00161287]
[1765826882357,0.11583005,86301.0,86300.0,0.00161287]
[1765826882562,0.11583005,86301.0,86300.0,0.23336258]
[1765826882781,0.01158641,86308.0,86304.0,0.23173748]
[1765826882782,0.23173084,86308.0,86304.0,0.23173748]
[1765826882995,0.11583005,86309.0,86306.0,0.24331769]
[1765826883454,0.11583005,86309.0,86307.0,0.23173075]
[1765826883655,0.24331504,86308.0,86304.0,0.24332411]
[1765826883860,0.0115856,86314.0,86304.0,0.24332411]
[1765826883861,0.11583005,86313.0,86306.0,0.01158667]
[1765826884071,0.0115856,86314.0,86310.0,0.01158614]
[1765826884282,0.24329735,86315.0,86312.0,0.01158587]
[1765826884512,0.23168739,86324.0,86320.0,0.0115848]
[1765826884513,0.01158426,86324.0,86320.0,0.0115848]
[1765826884723,0.02843655,86341.0,86325.0,0.01158412]
[1765826884724,0.01158319,86332.0,86325.0,0.01158412]
[1765826884928,0.01158332,86331.0,86325.0,0.24326464]
[1765826885132,0.01158359,86329.0,86325.0,0.24326597]
[1765826885342,0.23166309,86333.0,86330.0,0.23166904]
[1765826885551,0.23166309,86333.0,86326.0,0.01158399]
[1765826885552,0.01158332,86331.0,86327.0,0.01158386]
[1765826885758,0.01158292,86334.0,86331.0,0.01158332]
[1765826885972,0.05959762,86333.0,86328.0,0.01158372]
[1765826886182,0.003,86329.0,86328.0,0.24325826]
[1765826886888,0.003,86329.0,86328.0,0.01158372]
[1765826887074,0.003,86329.0,86320.0,0.00161287]
[1765826887075,0.01158439,86323.0,86320.0,0.00161287]
[1765826887318,0.23169263,86322.0,86320.0,0.00161287]
[1765826887523,0.11583005,86330.0,86328.0,0.23167454]
[1765826887946,0.001,86329.0,86328.0,0.23167454]
[1765826888152,0.24325161,86331.0,86328.0,0.23167454]
[1765826888153,0.00999396,86332.0,86329.0,0.01158359]
[1765826888359,0.01158251,86337.0,86331.0,0.01158332]
[1765826888542,0.24324099,86335.0,86332.0,0.23166359]
[1765826888841,0.23166112,86333.0,86328.0,0.24325826]
[1765826889079,0.12741256,86337.0,86332.0,0.01158319]
[1765826889289,0.12741256,86337.0,86326.0,0.01158399]
[1765826889290,0.01158278,86335.0,86326.0,0.01158399]
[1765826889517,0.002,86332.0,86328.0,0.23167426]
[1765826889727,0.01158345,86330.0,86327.0,0.01158386]
[1765826889935,0.01158345,86330.0,86323.0,0.24327118]
[1765826889936,0.24326354,86327.0,86323.0,0.01158439]
[1765826890144,0.002,86329.0,86326.0,0.01158399]
[1765826890353,0.01158345,86330.0,86326.0,0.23167886]
[1765826890563,0.01158345,86330.0,86327.0,0.01158386]
[1765826890768,0.01158332,86331.0,86328.0,0.01158372]
[1765826891003,0.24325089,86331.0,86328.0,0.01158372]
[1765826891219,0.23168972,86323.0,86319.0,0.01844]
[1765826891433,0.23169206,86322.0,86319.0,0.03002493]
[1765826891657,0.0115848,86320.0,86314.0,0.24329729]
[1765826891869,0.0115848,86320.0,86315.0,0.01158547]
[1765826892109,0.34752587,86321.0,86318.0,0.01158506]
[1765826892110,0.11583005,86321.0,86318.0,0.01158506]
[1765826892325,0.0115848,86320.0,86317.0,0.0115852]
[1765826892560,0.01158453,86322.0,86319.0,0.24328295]
[1765826892810,0.24327992,86321.0,86317.0,0.24328904]
[1765826893493,0.01158493,86319.0,86316.0,0.23170407]
[1765826893710,0.23169983,86319.0,86317.0,0.0115852]
[1765826893962,0.23169983,86319.0,86316.0,0.2432894]
[1765826894174,0.2316971,86320.0,86317.0,0.24328906]
[1765826894409,0.2316971,86320.0,86314.0,0.01319847]
[1765826894410,0.23170695,86316.0,86314.0,0.00161287]
[1765826894648,0.23170943,86315.0,86314.0,0.00161287]
[1765826895325,0.347537,86316.0,86314.0,0.00161287]
[1765826895568,0.23170943,86315.0,86314.0,0.00161287]
[1765826895814,0.24331069,86310.0,86306.0,0.01158667]
[1765826896003,0.01158587,86312.0,86306.0,0.01158667]
[1765826896004,0.01158587,86312.0,86307.0,0.01158654]
[1765826896275,0.11583005,86313.0,86310.0,0.01158614]
[1765826896533,0.11583005,86313.0,86304.0,0.01844]
[1765826896742,0.00999396,86312.0,86288.0,0.30627]
[1765826896918,0.01158882,86290.0,86287.0,0.0371]
[1765826897171,0.01158882,86290.0,86283.0,0.0345]
[1765826897172,0.23179268,86284.0,86283.0,0.0004]
[1765826897804,0.34762273,86284.0,86283.0,0.0004]
[1765826898853,0.34762273,86284.0,86283.0,0.0024]
[1765826899075,0.23179268,86284.0,86283.0,0.0024]
[1765826899953,0.34762273,86284.0,86283.0,0.0004]
[1765826900171,0.34862273,86284.0,86283.0,0.0004]
[1765826900382,0.23279268,86284.0,86283.0,0.0004]
[1765826900794,0.23379268,86284.0,86283.0,0.0004]
[1765826901003,0.35062273,86284.0,86283.0,0.0004]
[1765826901621,0.46054237,86284.0,86283.0,0.0004]
[1765826901845,1.46054237,86284.0,86283.0,0.0004]
[1765826902305,1.35062273,86284.0,86283.0,0.0004]
[1765826904793,1.35062273,86284.0,86283.0,0.00077959]
[1765826906292,0.35062273,86284.0,86283.0,0.00077959]
[1765826906508,0.003,86284.0,86283.0,0.00077959]
[1765826906739,0.23479268,86284.0,86283.0,0.00077959]
[1765826907167,0.003,86284.0,86283.0,0.23418783]
[1765826907407,0.23479268,86284.0,86283.0,0.00239246]
[1765826908038,0.001,86284.0,86283.0,0.00239246]
[1765826908251,0.001,86284.0,86283.0,0.23418783]
[1765826908456,0.002,86284.0,86283.0,0.39308783]
[1765826908907,0.002,86284.0,86283.0,0.00077959]
[1765826908908,0.52449268,86284.0,86283.0,0.00077959]
[1765826909118,0.63428205,86284.0,86283.0,0.00077959]
[1765826909332,0.518452,86284.0,86283.0,0.00077959]
[1765826909547,0.23179268,86284.0,86283.0,0.00077959]
[1765826909722,0.24337673,86286.0,86283.0,0.00239246]
[1765826909934,0.01158936,86286.0,86283.0,0.00239246]
[1765826910354,0.01158896,86289.0,86283.0,0.23418783]
[1765826910355,0.001,86284.0,86283.0,0.23418783]
[1765826910586,0.001,86284.0,86283.0,0.26877783]
[1765826910795,0.01158869,86291.0,86283.0,0.26877783]
[1765826910796,0.01158842,86293.0,86289.0,0.01158896]
[1765826911012,0.23177386,86292.0,86290.0,0.01844]
[1765826911233,0.01158775,86298.0,86295.0,0.01158815]
[1765826911436,0.23175776,86297.0,86295.0,0.00161287]
[1765826911635,0.23176045,86296.0,86295.0,0.00161287]
[1765826912066,0.24334283,86298.0,86295.0,0.00161287]
[1765826912285,0.2317587,86297.0,86295.0,0.00161287]
[1765826912513,0.23178531,86287.0,86281.0,0.01159003]
[1765826912716,0.01158896,86289.0,86285.0,0.01158949]
[1765826912920,0.01158869,86291.0,86288.0,0.243371]
[1765826913156,0.24336068,86292.0,86290.0,0.23177606]
[1765826913157,0.001,86292.0,86290.0,0.23177606]
[1765826913393,0.00999396,86293.0,86290.0,0.24497775]
[1765826913588,0.2317736,86292.0,86290.0,0.00161287]
[1765826914185,0.23177388,86291.0,86290.0,0.00161287]
[1765826914392,0.34760393,86291.0,86290.0,0.00161287]
[1765826914578,0.34760393,86291.0,86290.0,0.02005287]
[1765826914785,0.11583005,86291.0,86290.0,0.00161287]
[1765826915047,0.001,86292.0,86291.0,0.23177388]
[1765826915260,0.001,86292.0,86291.0,0.23338675]
[1765826915823,0.001,86292.0,86291.0,0.00161287]
[1765826916037,0.001,86292.0,86291.0,0.25182675]
[1765826916371,0.11583005,86296.0,86295.0,0.23176313]
[1765826917416,0.34759555,86296.0,86292.0,0.24335729]
[1765826917633,0.11583005,86296.0,86294.0,0.23176413]
[1765826917833,0.11583005,86296.0,86293.0,0.24335449]
[1765826918014,0.24335365,86295.0,86292.0,0.01320142]
[1765826918383,0.11683005,86296.0,86293.0,0.01158842]
[1765826918527,0.11683005,86296.0,86292.0,0.01320142]
[1765826918528,0.23176313,86295.0,86292.0,0.00161287]
[1765826918733,0.34759855,86293.0,86292.0,0.00161287]
[1765826918937,0.11583005,86293.0,86292.0,0.00161287]
[1765826919151,0.11583005,86293.0,86292.0,0.25182406]
[1765826919393,0.11583005,86293.0,86275.0,0.34772313]
[1765826919394,0.24337688,86286.0,86277.0,0.01159057]
[1765826919549,0.23179268,86284.0,86282.0,0.01844]
[1765826919755,0.23179069,86285.0,86282.0,0.01844]
[1765826919935,0.34762273,86284.0,86282.0,0.01844]
[1765826920137,0.11583005,86284.0,86282.0,0.01844]
[1765826920336,0.11583005,86284.0,86283.0,0.23257496]
[1765826920536,0.11583005,86286.0,86285.0,0.24337705]
[1765826920757,0.34759587,86294.0,86289.0,0.23177855]
[1765826920974,0.01158855,86292.0,86289.0,0.00161287]
[1765826921185,0.34760661,86290.0,86289.0,0.00161287]
[1765826921442,0.23179268,86284.0,86283.0,0.00077959]
[1765826921658,0.34762273,86284.0,86283.0,0.00077959]
[1765826921878,0.34762273,86284.0,86283.0,0.00177959]
[1765826922140,0.34762273,86284.0,86283.0,0.00077959]
[1765826922813,0.11583005,86284.0,86283.0,0.23257496]
[1765826923028,0.12741941,86286.0,86283.0,0.00077959]
[1765826923234,0.23179147,86285.0,86283.0,0.00077959]
[1765826923649,0.24335922,86293.0,86289.0,0.01158896]
[1765826923857,0.24335933,86293.0,86290.0,0.23177656]
[1765826924087,0.35993005,86299.0,86296.0,0.01158802]